[Event "XII Cracow ICC-A 2024"]
[Site "Krakow"]
[Date "2024.06.23"]
[Round "2.18"]
[White "Mirzoev, Azer"]
[Black "Stanojevic, Ilija"]
[Result "1-0"]
[ECO "D35"]
[WhiteElo "2448"]
[BlackElo "2260"]
[Annotator "TA"]
[PlyCount "111"]
[EventDate "2024.06.20"]
[EventType "swiss"]
[EventCountry "POL"]
[SourceTitle "playchess.com"]
[Source "ChessBase"]
[SourceQuality "1"]
[TimeControl "40/5400+30:1800+30"]

{[%evp 19,111,18,17,16,40,1,0,-38,9,-32,0,0,7,12,0,0,0,0,0,0,7,-13,0,-6,16,26,35,0,0,0,25,0,58,68,67,66,74,60,64,84,77,76,89,55,132,135,120,129,189,136,116,124,201,101,95,11,0,8,91,71,73,0,0,0,800,663,629,584,839,831,817,804,1104,1179,5704,5177,12821,4325,6087,1423,1504,1427,29942,1358,1219,781,1212,992,1124,1116,29981,29982,29982,29983]} 1. d4 {[%emt 0:00:03]} Nf6 {[%emt 0:02:35]} 2. c4 {[%emt 0:00:07]} e6 {[%emt 0:00:05]} 3. Nc3 {[%emt 0:00:05]} d5 {[%emt 0:00:04]} 4. cxd5 {[%emt 0:00:09]} exd5 {[%emt 0:00:15]} 5. Bg5 {[%emt 0:00:08]} c6 {[%emt 0:01:26]} 6. e3 {[%emt 0:00:05]} Be7 {[%emt 0:00:25]} 7. Qc2 {[%emt 0:00:13]} Nbd7 {[%emt 0:02:18]} 8. Bd3 {[%emt 0:00:06]} O-O {[%emt 0:01:39]} 9. Nge2 {[%emt 0:00:10]} Re8 {[%emt 0:06:58]} 10. O-O {[%emt 0:03:39]} g6 {[%emt 0:01:13]} 11. f3 {[%emt 0:00:45] D36: Queen's Gambit Declined: Exchange Variation: Main line (5 Bg5 c6 6 Qc2).} b5 {[%emt 0:02:52]} 12. Bh4 {[%emt 0:00:52]} Bb7 $146 {[%emt 0:01:53]} ({Predecessor:} 12... Nb6 13. b3 Nh5 14. Bf2 Bf6 15. e4 dxe4 16. fxe4 Bg4 17. h3 Bxe2 18. Nxe2 Qd7 {1-0 Savina,A (2339)-Gueci,T (2228) C'Chartres Blitz (Women) 2020 (13)}) 13. Bf2 {[%emt 0:01:04]} Rc8 {[%emt 0:04:04]} (13... a6 $15) 14. Rad1 {[%emt 0:03:21]} b4 {[%emt 0:07:08]} 15. Na4 {[%emt 0:00:24]} c5 {[%emt 0:00:24]} 16. Nxc5 {[%emt 0:00:39]} Nxc5 {[%emt 0:00:13]} 17. dxc5 {[%emt 0:00:05]} Bxc5 {[%emt 0:01:02]} 18. Qd2 {[%emt 0:00:09]} Qb6 {[%emt 0:03:56][%cal Rc5e3]} 19. Nd4 {[%emt 0:00:09]} Ba6 {[%emt 0:00:53]} 20. Rfe1 {[%emt 0:01:17]} Bxd3 {[%emt 0:00:27]} 21. Qxd3 {[%emt 0:00:10]} Bxd4 {[%emt 0:08:07]} 22. Qxd4 {[%emt 0:00:34]} Rc2 {[%emt 0:25:01]} 23. Qxb6 {[%emt 0:15:45]} axb6 {[%emt 0:00:29]} 24. Rb1 {[%emt 0:00:11]} Rec8 {[%emt 0:14:46]} 25. Kf1 {[%emt 0:05:54]} Rd2 {[%emt 0:03:05]} (25... Nd7 $11) 26. Red1 $1 $14 {[%emt 0:00:44]} Rxd1+ $1 {[%emt 0:05:43]} 27. Rxd1 {[%emt 0:00:05][%mdl 4096] Endgame. KRB-KRN} Rc2 {[%emt 0:00:03] [#]} 28. Bg3 $1 {[%emt 0:03:10]} Nh5 {[%emt 0:02:41]} (28... Rxb2 $2 29. Be5 $18) 29. Be5 {[%emt 0:01:24] Inhibits Nxg3+.} f6 {[%emt 0:00:03]} 30. Bd4 {[%emt 0:00:05][%cal Og2g4]} Kf7 {[%emt 0:00:56]} 31. Rd3 {[%emt 0:02:39][%cal Od3b3]} Ng7 {[%emt 0:02:48]} (31... b5 $1 $14) 32. Rb3 $1 $16 {[%emt 0:07:12]} (32. Bxb6 Rxb2 33. Rxd5 Rxa2 34. Rd7+ Kg8 $16) 32... Rc1+ {[%emt 0:02:23]} 33. Ke2 {[%emt 0:00:10]} Nf5 {[%emt 0:00:29]} (33... Ne6 $16 {might work better.}) 34. Rxb4 {[%emt 0:10:41]} ({White should play} 34. Bxb6 $18 Rc4 (34... Rc2+ 35. Kd3 $11) 35. Ba5) 34... Rc2+ {[%emt 0:00:24]} 35. Kd3 {[%emt 0:00:05]} Rxg2 {[%emt 0:00:27]} (35... Nxd4 $16 {is a better defense.} 36. Kxd4 (36. Rxb6 Rxg2 37. Rb7+ Ke6 $16) 36... Rxg2 (36... Rd2+ $2 37. Kc3 $19)) 36. Rxb6 {[%emt 0:00:27]} (36. Bxb6 $18 {And now a4 would win.} Rxh2 37. a4) 36... Nxd4 {[%emt 0:00:40]} 37. exd4 {[%emt 0:00:07]} (37. Kxd4 $16 {Strongly threatening a4.} Rxh2 38. Kxd5 Rd2+ 39. Ke4) 37... Rxh2 {[%emt 0:00:18] KR-KR} 38. a4 {[%emt 0:00:04] aiming for a5.} h5 {[%emt 0:00:37]} (38... Rh1 $1 $11) 39. a5 {[%emt 0:00:14]} Rh1 {[%emt 0:00:31] [#]} 40. a6 {[%emt 0:01:42]} ({Better is} 40. Rb3 $1 $16 {Hoping for a6.} h4 41. a6) 40... Ra1 $1 $11 {[%emt 0:00:21]} 41. b4 {[%emt 0:31:21][%cal Bb2b4,Bb4b5][%mdl 32]} h4 $2 {[%emt 0:30:14][%mdl 8192]} (41... g5 $11) 42. Rb7+ $18 {[%emt 0:00:43]} Ke6 {[%emt 0:00:00]} 43. b5 {[%emt 0:00:00]} h3 {[%emt 0:00:00]} 44. Rh7 {[%emt 0:00:00]} Ra3+ {[%emt 0:00:00]} 45. Kc2 {[%emt 0:00:00]} Kd6 {[%emt 0:01:31]} 46. Rxh3 {[%emt 0:00:00]} Kc7 {[%emt 0:01:29]} 47. Rh7+ {[%emt 0:00:00]} Kb8 {[%emt 0:00:24]} 48. Rf7 {[%emt 0:00:00]} (48. Kb2 $142 Ra5 49. Rb7+ Ka8 50. Kb3) 48... Ra5 {[%emt 0:00:32]} 49. Rxf6 {[%emt 0:00:00]} (49. Rb7+ $142 Ka8 50. Kb3) 49... Rxb5 {[%emt 0:00:15]} 50. Rxg6 {[%emt 0:00:00]} Kc7 {[%emt 0:00:41]} 51. Kd3 {[%emt 0:00:00]} (51. Rg8 $142 Ra5 52. a7 Rxa7 53. Rg7+ Kb8 54. Rxa7 Kxa7 55. Kd2 Kb7 56. Ke3) 51... Rb3+ {[%emt 0:00:25]} 52. Ke2 {[%emt 0:00:00]} Ra3 {[%emt 0:00:42]} 53. Rf6 {[%emt 0:00:00]} Kd7 {[%emt 0:00:28]} 54. f4 {[%emt 0:00:00]} Ra4 {[%emt 0:00:29] [#]} 55. a7 $1 {[%emt 0:00:00]} Kc7 {[%emt 0:00:33]} 56. Rf8 {[%emt 0:00:00]} 1-0

[Event "XII Cracow ICC-A 2024"]
[Site "Krakow"]
[Date "2024.06.23"]
[Round "2.19"]
[White "Nguyen, Piotr"]
[Black "Gierulski, Kamil"]
[Result "0-1"]
[ECO "A34"]
[WhiteElo "2426"]
[BlackElo "2242"]
[Annotator "RC"]
[PlyCount "102"]
[EventDate "2024.06.20"]
[EventType "swiss"]
[EventCountry "POL"]
[SourceTitle "playchess.com"]
[Source "ChessBase"]
[SourceQuality "1"]
[TimeControl "40/5400+30:1800+30"]

1. c4 {[%emt 0:00:03]} c5 {[%emt 0:00:06]} 2. g3 {[%emt 0:00:22]} Nf6 {[%emt 0:00:03]} 3. Bg2 {[%emt 0:00:08]} d5 4. cxd5 {[%emt 0:00:54]} Nxd5 {[%emt 0:00:05]} 5. Nc3 {[%emt 0:00:15]} Nc7 {[%emt 0:00:03]} 6. Nf3 {[%emt 0:02:27]} Nc6 {[%emt 0:00:03]} 7. a3 {[%emt 0:00:04]} g6 {[%emt 0:00:11]} 8. Ng5 {[%emt 0:26:39]} Bg7 {[%emt 0:12:13]} 9. Bxc6+ {[%emt 0:07:35]} bxc6 {[%emt 0:00:04]} 10. Qa4 {[%emt 0:00:10]} O-O {[%emt 0:12:06]} 11. Qxc6 {[%emt 0:04:25]} Rb8 {[%emt 0:02:18]} 12. Qxc5 {[%emt 0:06:31]} h6 {[%emt 0:06:55]} 13. Nf3 {[%emt 0:02:12]} Bh3 {[%emt 0:00:42]} 14. Rg1 {[%emt 0:09:18]} Bg4 {[%emt 0:03:31]} 15. Qe3 {[%emt 0:04:44]} Ne6 {[%emt 0:03:54]} 16. b4 {[%emt 0:03:31]} a5 {[%emt 0:01:56]} 17. Rb1 {[%emt 0:05:47]} Qc7 {[%emt 0:09:50]} 18. b5 {[%emt 0:03:11]} Bf5 {[%emt 0:06:53]} 19. Rb2 {[%emt 0:01:39]} h5 {[%emt 0:00:21]} 20. b6 {[%emt 0:05:07]} Qb7 {[%emt 0:01:04]} 21. Ne5 {[%emt 0:02:21]} Rfd8 {[%emt 0:01:38]} 22. f4 {[%emt 0:03:36]} Nd4 {[%emt 0:07:00]} 23. Kf2 {[%emt 0:05:53]} Rbc8 {[%emt 0:00:34]} 24. h3 {[%emt 0:04:14]} f6 {[%emt 0:01:41]} 25. Nf3 {[%emt 0:00:55]} e5 {[%emt 0:02:41]} 26. Na4 {[%emt 0:00:53]} exf4 {[%emt 0:10:17]} 27. gxf4 {[%emt 0:00:32]} Rc4 {[%emt 0:01:03]} 28. Nc3 {[%emt 0:00:27]} Nc2 {[%emt 0:01:35]} 29. Rxc2 {[%emt 0:00:12]} Bxc2 {[%emt 0:00:04]} 30. Bb2 {[%emt 0:00:50]} Qc6 {[%emt 0:03:11]} 31. Rc1 Re8 {[%emt 0:00:19]} 32. Nd4 {[%emt 0:00:43]} Qd7 {[%emt 0:00:34]} 33. Rxc2 {[%emt 0:00:46]} Rxe3 {[%emt 0:00:16]} 34. dxe3 {[%emt 0:00:04]} f5 {[%emt 0:01:52]} 35. Rd2 {[%emt 0:00:47]} Bxd4 {[%emt 0:00:23]} 36. exd4 {[%emt 0:00:14]} Rxd4 {[%emt 0:01:20]} 37. b7 {[%emt 0:00:20]} Qxb7 {[%emt 0:02:58]} 38. Rxd4 {[%emt 0:00:04]} Qxb2 {[%emt 0:00:03]} 39. Rc4 {[%emt 0:00:47]} Qxa3 {[%emt 0:00:09]} 40. Ke3 {[%emt 0:01:03]} Qc1+ {[%emt 0:00:44]} 41. Kd3 {[%emt 0:30:25]} Qf1 {[%emt 0:30:32]} 42. h4 {[%emt 0:00:00]} Qf2 {[%emt 0:00:00]} 43. Nd5 {[%emt 0:00:00]} Qxh4 {[%emt 0:00:00]} 44. Rc7 {[%emt 0:00:00]} Kf8 {[%emt 0:00:00]} 45. Kd4 {[%emt 0:00:00]} Qd8 {[%emt 0:00:00]} 46. Ke5 {[%emt 0:00:00]} h4 {[%emt 0:00:00]} 47. Rh7 {[%emt 0:00:00]} Kg8 {[%emt 0:00:00]} 48. Rb7 {[%emt 0:00:20]} Qe8+ {[%emt 0:00:00]} 49. Kd6 {[%emt 0:03:03]} Qf8+ {[%emt 0:00:00]} 50. Ke6 {[%emt 0:00:31]} Qc8+ {[%emt 0:00:00]} 51. Rd7 {[%emt 0:00:06]} Qxd7+ {[%emt 0:00:00]} 0-1

[Event "XII Cracow ICC-A 2024"]
[Site "Krakow"]
[Date "2024.06.23"]
[Round "2.20"]
[White "Aarav Dengla"]
[Black "Pycinski, Wladyslaw"]
[Result "1-0"]
[ECO "C50"]
[WhiteElo "2395"]
[BlackElo "2244"]
[Annotator "RC"]
[PlyCount "89"]
[EventDate "2024.06.20"]
[EventType "swiss"]
[EventCountry "POL"]
[SourceTitle "playchess.com"]
[Source "ChessBase"]
[SourceQuality "1"]
[TimeControl "40/5400+30:1800+30"]

1. e4 {[%emt 0:00:04]} e5 {[%emt 0:00:05]} 2. Nf3 {[%emt 0:00:06]} Nc6 {[%emt 0:00:03]} 3. Bc4 {[%emt 0:00:05]} Nf6 {[%emt 0:00:05]} 4. d3 {[%emt 0:00:04]} Bc5 {[%emt 0:00:14]} 5. Bg5 {[%emt 0:00:28]} d6 {[%emt 0:02:57]} 6. c3 {[%emt 0:01:38]} h6 {[%emt 0:00:54]} 7. Bh4 {[%emt 0:00:18]} a5 {[%emt 0:00:33]} 8. a4 {[%emt 0:17:03]} Ba7 {[%emt 0:15:38]} 9. Na3 {[%emt 0:18:35]} g5 {[%emt 0:08:52]} 10. Bg3 {[%emt 0:01:53]} Be6 {[%emt 0:12:59]} 11. Bb5 {[%emt 0:10:05]} O-O {[%emt 0:05:47]} 12. O-O {[%emt 0:00:23]} Ne7 {[%emt 0:03:01]} 13. Re1 {[%emt 0:03:58]} Nh7 {[%emt 0:13:20]} 14. d4 {[%emt 0:06:02]} f6 {[%emt 0:03:38]} 15. Bc4 {[%emt 0:07:48]} Bxc4 {[%emt 0:02:23]} 16. Nxc4 {[%emt 0:00:04]} Qc8 {[%emt 0:01:49]} 17. Qb3 {[%emt 0:09:05]} Kh8 {[%emt 0:04:03]} 18. Rad1 {[%emt 0:02:04]} Ng6 {[%emt 0:07:17]} 19. Ne3 {[%emt 0:07:47]} Ne7 {[%emt 0:01:33]} 20. Nc4 {[%emt 0:00:02]} Ng6 {[%emt 0:01:04]} 21. Ne3 {[%emt 0:02:39]} Ne7 {[%emt 0:00:09]} 22. Nd5 {[%emt 0:00:41]} Nc6 {[%emt 0:02:55]} 23. Qc4 {[%emt 0:03:54]} Kg7 {[%emt 0:02:09]} 24. Ne3 {[%emt 0:00:17]} Ne7 {[%emt 0:00:08]} 25. Nd5 {[%emt 0:00:01]} Nc6 {[%emt 0:00:21]} 26. Re2 {[%emt 0:03:27]} Rf7 {[%emt 0:00:48]} 27. Ne3 {[%emt 0:00:16]} Ne7 {[%emt 0:00:21]} 28. Red2 {[%emt 0:00:47]} Nf8 {[%emt 0:01:19]} 29. h4 {[%emt 0:02:03]} g4 {[%emt 0:02:14]} 30. Nh2 {[%emt 0:00:09]} h5 {[%emt 0:00:27]} 31. Qe2 {[%emt 0:00:38]} Nfg6 {[%emt 0:02:21]} 32. f3 {[%emt 0:00:20]} f5 {[%emt 0:02:52]} 33. exf5 {[%emt 0:01:09]} gxf3 {[%emt 0:01:19]} 34. Qxf3 {[%emt 0:01:28]} Nxf5 {[%emt 0:00:34]} 35. Rf1 {[%emt 0:00:18]} Nh6 {[%emt 0:00:51]} 36. Qxh5 {[%emt 0:00:10]} Rxf1+ {[%emt 0:00:46]} 37. Nhxf1 {[%emt 0:00:03]} Qe6 {[%emt 0:01:12]} 38. Qg5 {[%emt 0:00:59]} Kh7 {[%emt 0:01:21]} 39. Rf2 {[%emt 0:01:52]} exd4 {[%emt 0:01:05]} 40. Rf6 {[%emt 0:00:32]} Qe8 {[%emt 0:00:30]} 41. Bf4 {[%emt 0:08:12]} Ng8 {[%emt 0:00:51]} 42. Nf5 {[%emt 0:02:51]} dxc3+ {[%emt 0:00:10]} 43. Kh1 {[%emt 0:00:18]} Nxf6 {[%emt 0:01:01]} 44. Qh6+ {[%emt 0:00:03]} Kg8 {[%emt 0:00:06]} 45. Qg7# {[%emt 0:00:03]} 1-0

[Event "XII Cracow ICC-A 2024"]
[Site "Krakow"]
[Date "2024.06.23"]
[Round "2.21"]
[White "Marszalek, Maciej"]
[Black "Alexiadis, Hristos"]
[Result "1/2-1/2"]
[ECO "A16"]
[WhiteElo "2255"]
[BlackElo "2378"]
[Annotator "ChessBase"]
[PlyCount "54"]
[EventDate "2024.06.20"]
[EventType "swiss"]
[EventCountry "POL"]
[SourceTitle "playchess.com"]
[Source "ChessBase"]
[SourceQuality "1"]
[TimeControl "40/5400+30:1800+30"]

1. c4 {[%emt 0:00:03]} Nf6 {[%emt 0:06:29]} 2. Nc3 {[%emt 0:00:26]} g6 {[%emt 0:00:28]} 3. g3 {[%emt 0:00:07]} Bg7 {[%emt 0:00:05]} 4. Bg2 {[%emt 0:00:04]} O-O {[%emt 0:00:10]} 5. e4 {[%emt 0:00:52]} c5 {[%emt 0:03:11]} 6. Nge2 {[%emt 0:02:04]} Nc6 {[%emt 0:00:11]} 7. d3 {[%emt 0:00:33]} Rb8 {[%emt 0:04:06]} 8. O-O {[%emt 0:00:54]} a6 {[%emt 0:00:35]} 9. a4 {[%emt 0:01:07]} d6 {[%emt 0:01:38]} 10. h3 {[%emt 0:00:45]} Ne8 {[%emt 0:04:31]} 11. Be3 {[%emt 0:01:03]} Nc7 {[%emt 0:02:16]} 12. d4 {[%emt 0:01:12]} cxd4 {[%emt 0:01:23]} 13. Nxd4 {[%emt 0:00:20]} Ne6 {[%emt 0:03:06]} 14. Nde2 {[%emt 0:01:00]} Bd7 {[%emt 0:08:50]} 15. Rb1 {[%emt 0:04:57]} Na5 {[%emt 0:09:08]} 16. b3 {[%emt 0:03:21]} b5 {[%emt 0:04:09]} 17. cxb5 {[%emt 0:03:41]} axb5 {[%emt 0:00:08]} 18. Qd3 {[%emt 0:05:40]} bxa4 {[%emt 0:12:47]} 19. bxa4 {[%emt 0:00:50]} Nb3 {[%emt 0:00:35]} 20. Nd5 {[%emt 0:17:31]} Bxa4 {[%emt 0:15:27]} 21. Qc4 {[%emt 0:02:50]} Nec5 {[%emt 0:05:26]} 22. Nec3 {[%emt 0:04:07]} Bd7 {[%emt 0:01:34]} 23. Bxc5 {[%emt 0:01:39]} Nxc5 {[%emt 0:00:05]} 24. Rxb8 {[%emt 0:00:10]} Qxb8 {[%emt 0:00:04]} 25. Nxe7+ {[%emt 0:00:08]} Kh8 {[%emt 0:00:03]} 26. Ned5 {[%emt 0:03:51]} Qd8 {[%emt 0:08:50]} 27. Ra1 {[%emt 0:04:07]} Be6 {[%emt 0:00:38]} 1/2-1/2

[Event "XII Cracow ICC-A 2024"]
[Site "Krakow"]
[Date "2024.06.23"]
[Round "2.22"]
[White "Hollan, Martin"]
[Black "Gorkiewicz, Mateusz"]
[Result "1-0"]
[ECO "C44"]
[WhiteElo "2373"]
[BlackElo "2223"]
[Annotator "ChessBase"]
[PlyCount "57"]
[EventDate "2024.06.20"]
[EventType "swiss"]
[EventCountry "POL"]
[SourceTitle "playchess.com"]
[Source "ChessBase"]
[SourceQuality "1"]
[TimeControl "40/5400+30:1800+30"]

1. e4 {[%emt 0:00:03]} e5 {[%emt 0:00:13]} 2. Nf3 {[%emt 0:00:08]} Nc6 {[%emt 0:00:10]} 3. Bc4 {[%emt 0:00:08]} Nf6 {[%emt 0:00:17]} 4. d4 {[%emt 0:00:07]} exd4 {[%emt 0:00:17]} 5. e5 {[%emt 0:00:08]} d5 {[%emt 0:00:19]} 6. Bb5 {[%emt 0:00:10]} Nd7 {[%emt 0:01:54]} 7. O-O {[%emt 0:00:46]} Be7 {[%emt 0:00:24]} 8. Bxc6 {[%emt 0:00:07]} bxc6 {[%emt 0:00:06]} 9. Nxd4 {[%emt 0:00:14]} Nb8 {[%emt 0:00:18]} 10. Nc3 {[%emt 0:00:14]} O-O {[%emt 0:00:36]} 11. Qf3 {[%emt 0:00:27]} a5 {[%emt 0:01:27]} 12. Re1 {[%emt 0:04:34]} Ra6 {[%emt 0:00:45]} 13. Nf5 {[%emt 0:02:32]} Bxf5 {[%emt 0:03:13]} 14. Qxf5 {[%emt 0:00:38]} f6 {[%emt 0:00:37]} 15. e6 {[%emt 0:03:22]} d4 {[%emt 0:01:22]} 16. Ne2 {[%emt 0:09:36]} c5 {[%emt 0:08:10]} 17. Ng3 {[%emt 0:03:35]} g6 {[%emt 0:08:56]} 18. Qd3 {[%emt 0:03:49]} Rb6 {[%emt 0:07:40]} 19. Bh6 {[%emt 0:06:58]} Re8 {[%emt 0:03:21]} 20. h4 {[%emt 0:00:06]} Nc6 {[%emt 0:04:39]} 21. h5 {[%emt 0:05:30]} Nb4 {[%emt 0:04:36]} 22. Qd1 {[%emt 0:09:52]} Qd5 {[%emt 0:10:39]} 23. a3 {[%emt 0:10:08]} Na6 {[%emt 0:18:00]} 24. hxg6 {[%emt 0:07:00]} hxg6 {[%emt 0:00:27]} 25. Qg4 {[%emt 0:01:16]} Kh7 {[%emt 0:00:31]} 26. Bd2 {[%emt 0:03:48]} Rh8 {[%emt 0:10:12]} 27. c4 {[%emt 0:02:47]} Qxc4 {[%emt 0:02:52]} 28. Nf5 {[%emt 0:01:15]} gxf5 {[%emt 0:02:19]} 29. Qh5+ {[%emt 0:00:20]} 1-0

[Event "XII Cracow ICC-A 2024"]
[Site "Krakow"]
[Date "2024.06.23"]
[Round "2.23"]
[White "Klepek, Witold"]
[Black "Lewtak, Damian"]
[Result "1/2-1/2"]
[ECO "A15"]
[WhiteElo "2236"]
[BlackElo "2370"]
[Annotator "ChessBase"]
[PlyCount "45"]
[EventDate "2024.06.20"]
[EventType "swiss"]
[EventCountry "POL"]
[SourceTitle "playchess.com"]
[Source "ChessBase"]
[SourceQuality "1"]
[TimeControl "40/5400+30:1800+30"]

1. c4 {[%emt 0:00:03]} Nf6 {[%emt 0:00:07]} 2. Nf3 {[%emt 0:00:08]} e6 {[%emt 0:00:16]} 3. g3 {[%emt 0:00:06]} b6 {[%emt 0:00:47]} 4. Bg2 {[%emt 0:00:06]} Bb7 {[%emt 0:00:03]} 5. O-O {[%emt 0:01:18]} Be7 {[%emt 0:00:33]} 6. Nc3 {[%emt 0:01:10]} O-O {[%emt 0:01:22]} 7. Qc2 {[%emt 0:11:03]} d5 {[%emt 0:00:55]} 8. Ne5 {[%emt 0:04:11]} Nbd7 {[%emt 0:02:37]} 9. Nxd7 {[%emt 0:04:34]} Qxd7 {[%emt 0:00:12]} 10. d3 {[%emt 0:00:55]} c5 {[%emt 0:01:56]} 11. e4 {[%emt 0:01:14]} d4 {[%emt 0:09:30]} 12. Nd1 {[%emt 0:01:32]} Ne8 {[%emt 0:00:50]} 13. f4 {[%emt 0:05:07]} Nd6 {[%emt 0:03:57]} 14. Nf2 {[%emt 0:03:06]} f5 {[%emt 0:01:14]} 15. Qe2 {[%emt 0:01:36]} Bc6 {[%emt 0:06:01]} 16. Re1 {[%emt 0:12:41]} Qb7 {[%emt 0:07:51]} 17. Bd2 {[%emt 0:03:40]} a5 {[%emt 0:01:11]} 18. a4 {[%emt 0:02:00]} Rae8 {[%emt 0:01:09]} 19. Qf1 {[%emt 0:06:18]} Qd7 {[%emt 0:23:49]} 20. e5 {[%emt 0:05:33]} Nf7 {[%emt 0:01:19]} 21. Bxc6 {[%emt 0:00:38]} Qxc6 {[%emt 0:00:12]} 22. Qg2 {[%emt 0:00:04]} Qc7 {[%emt 0:00:54]} 23. h4 {[%emt 0:12:28]} 1/2-1/2

[Event "XII Cracow ICC-A 2024"]
[Site "Krakow"]
[Date "2024.06.23"]
[Round "2.24"]
[White "Mahitosh Dey"]
[Black "Cieslak, Patryk"]
[Result "1-0"]
[ECO "B92"]
[WhiteElo "2232"]
[BlackElo "2358"]
[Annotator "ChessBase"]
[PlyCount "121"]
[EventDate "2024.06.20"]
[EventType "swiss"]
[EventCountry "POL"]
[SourceTitle "playchess.com"]
[Source "ChessBase"]
[SourceQuality "1"]
[TimeControl "40/5400+30:1800+30"]

1. e4 {[%emt 0:01:48]} c5 {[%emt 0:00:04]} 2. Nf3 {[%emt 0:00:12]} d6 {[%emt 0:00:04]} 3. d4 {[%emt 0:00:05]} cxd4 {[%emt 0:00:03]} 4. Nxd4 {[%emt 0:00:07]} Nf6 {[%emt 0:00:04]} 5. Nc3 {[%emt 0:00:09]} a6 {[%emt 0:00:19]} 6. Be2 {[%emt 0:00:07]} e5 {[%emt 0:00:24]} 7. Nb3 {[%emt 0:00:05]} Be7 {[%emt 0:00:56]} 8. Be3 {[%emt 0:00:12]} Be6 {[%emt 0:00:33]} 9. Qd3 {[%emt 0:00:12]} O-O {[%emt 0:02:55]} 10. Nd5 {[%emt 0:03:19]} Nbd7 {[%emt 0:02:13]} 11. O-O-O {[%emt 0:00:59]} Bxd5 {[%emt 0:06:08]} 12. exd5 {[%emt 0:00:12]} b5 {[%emt 0:01:11]} 13. g4 {[%emt 0:12:02]} Rc8 {[%emt 0:27:39]} 14. g5 {[%emt 0:03:39]} Ne8 {[%emt 0:00:35]} 15. h4 {[%emt 0:01:11]} Nb6 {[%emt 0:14:36]} 16. Kb1 {[%emt 0:01:51]} Nc4 {[%emt 0:01:31]} 17. Bc1 {[%emt 0:03:17]} Qb6 {[%emt 0:02:33]} 18. h5 {[%emt 0:01:34]} a5 {[%emt 0:06:34]} 19. Bg4 {[%emt 0:01:10]} Rc7 {[%emt 0:03:19]} 20. g6 {[%emt 0:05:59]} Nf6 {[%emt 0:04:54]} 21. gxf7+ {[%emt 0:00:05]} Kxf7 {[%emt 0:01:32]} 22. Be6+ {[%emt 0:00:10]} Ke8 {[%emt 0:00:01]} 23. Rhg1 {[%emt 0:15:41]} a4 {[%emt 0:04:02]} 24. Nd2 {[%emt 0:00:08]} a3 {[%emt 0:00:15]} 25. Nxc4 {[%emt 0:02:15]} bxc4 {[%emt 0:03:33]} 26. Qxa3 {[%emt 0:00:07]} Ra7 {[%emt 0:01:50]} 27. Be3 {[%emt 0:00:45]} Rxa3 {[%emt 0:00:10]} 28. Bxb6 {[%emt 0:00:06]} Ra6 {[%emt 0:00:03]} 29. Be3 {[%emt 0:00:05]} Nxh5 {[%emt 0:00:18]} 30. Rg4 {[%emt 0:00:04]} Nf4 {[%emt 0:04:55]} 31. Rxg7 {[%emt 0:01:21]} h5 {[%emt 0:03:02]} 32. Bc8 {[%emt 0:03:31]} Ra5 {[%emt 0:03:45]} 33. Bb7 {[%emt 0:00:13]} Rf7 {[%emt 0:00:11]} 34. Bc6+ {[%emt 0:00:41]} Kf8 {[%emt 0:00:02]} 35. Rxf7+ {[%emt 0:00:07]} Kxf7 {[%emt 0:00:01]} 36. b4 {[%emt 0:00:08]} cxb3 {[%emt 0:01:54]} 37. cxb3 {[%emt 0:00:07]} Bd8 {[%emt 0:01:21]} 38. a4 {[%emt 0:04:20]} Ng2 {[%emt 0:00:38]} 39. Bd2 {[%emt 0:00:18]} Ra7 {[%emt 0:00:46]} 40. Rg1 {[%emt 0:00:12]} Nf4 {[%emt 0:00:23]} 41. Be3 {[%emt 0:30:13]} Ra6 {[%emt 0:30:32]} 42. Kc2 {[%emt 0:02:17]} Ne2 {[%emt 0:00:23]} 43. Re1 {[%emt 0:02:24]} Nd4+ {[%emt 0:00:22]} 44. Bxd4 {[%emt 0:00:04]} exd4 {[%emt 0:00:05]} 45. Be8+ {[%emt 0:00:03]} Kg7 {[%emt 0:00:38]} 46. Bxh5 {[%emt 0:00:05]} Ra5 {[%emt 0:02:57]} 47. Be2 {[%emt 0:00:52]} Rxd5 {[%emt 0:01:52]} 48. b4 {[%emt 0:00:04]} Rf5 {[%emt 0:01:12]} 49. f3 {[%emt 0:00:18]} Re5 {[%emt 0:00:00]} 50. Rg1+ {[%emt 0:00:00]} Kf8 {[%emt 0:00:00]} 51. Bd3 {[%emt 0:00:00]} Re3 {[%emt 0:00:00]} 52. Rf1 {[%emt 0:00:00]} Re7 {[%emt 0:00:00]} 53. a5 {[%emt 0:00:00]} Rc7+ {[%emt 0:00:00]} 54. Kd2 {[%emt 0:00:00]} Rb7 {[%emt 0:00:00]} 55. a6 {[%emt 0:00:00]} Rc7 {[%emt 0:00:00]} 56. Rh1 {[%emt 0:00:00]} Bg5+ {[%emt 0:00:00]} 57. Ke2 {[%emt 0:00:00]} Re7+ {[%emt 0:00:00]} 58. Kd1 {[%emt 0:00:00]} Bf6 {[%emt 0:00:00]} 59. b5 {[%emt 0:00:00]} Rc7 {[%emt 0:00:00]} 60. b6 {[%emt 0:00:00]} Rc3 {[%emt 0:00:00]} 61. Ke2 {[%emt 0:00:00]} 1-0